Cogmind - Beta 15 @@@ ROGUE MODE // 2025.08.17 @ 13:08:41 Player: C0-2MO Result: Destroyed by B-36 Bruiser with Hammer Performance ------------- Evolutions (0) 0 Regions Visited (3) 600 Robots Destroyed (24) 120 Value Destroyed (605) 605 Prototype IDs (2) 40 Alien Tech Used (0) 0 Bonus (0) 0 TOTAL SCORE: 1365 Bonus ------- None Cogmind --------- Core Integrity 0/250 Matter 300/300 Energy 85/125 System Corruption 2% Temperature Warm (168) Movement Treading (240) Ox1 Location -9/Recycling Parts ------- > --- POWER (1) -------- Light Ion Engine > --- PROPULSION (2) --- Light Treads > --- UTILITY (2) ------ Scrap Shield > --- WEAPON (2) ------- Subdweller Beam Cannon Subdweller Beam Cannon > --- INVENTORY (5) ---- Subdweller Monowheel Subdweller Optics Subdweller Beam Cannon Subdweller Beam Cannon Plasma Cutter Peak State ------------ > --- POWER ------------ Light Ion Engine > --- PROPULSION ------- Light Treads Subdweller Monowheel > --- UTILITY ---------- Huge Storage Unit Makeshift Thermal Plating > --- WEAPON ----------- Subdweller Beam Cannon Subdweller Beam Cannon > --- INVENTORY -------- Subdweller Monowheel Subdweller Optics Scrap Shield Makeshift Hacking Suite Subdweller Beam Cannon Subdweller Beam Cannon Heavy Battle Rifle Subdweller Shrapnel Launcher SUBCON Basin [Rating: 33] Favorites ----------- Power Light Ion Engine Engine Light Ion Engine Propulsion Compact Wheel Treads Light Treads Wheel Compact Wheel Utility Huge Storage Unit Device Disposable Heat Sink Storage Huge Storage Unit Hackware Makeshift Hacking Suite Protection Makeshift Thermal Plating Weapon Subdweller Beam Cannon Energy Gun Medium Laser Energy Cannon Subdweller Beam Cannon Ballistic Gun Battle Rifle Launcher Subdweller Shrapnel Launcher Build | -11 -10 -10 -9 ------- Run | Yrd Mat Sub Rec Slots Evolved . | . . . . Power . | . . . . Propulsion . | . . . . Utility . | . . . . Weapon . | . . . . Parts Attached 27 | 7 2 16 2 Power 3 | 1 . 2 . Engine 3 | 1 . 2 . Core . | . . . . Reactor . | . . . . Propulsion 7 | 2 1 4 . Treads 2 | 1 . 1 . Leg . | . . . . Wheel 5 | 1 1 3 . Hover . | . . . . Flight . | . . . . Utility 7 | 2 1 2 2 Device 2 | 1 . 1 . Storage 2 | 1 1 . . Processor . | . . . . Hackware 1 | . . . 1 Protection 2 | . . 1 1 Artifact . | . . . . Weapon 10 | 2 . 8 . Energy Gun 4 | 2 . 2 . Energy Cannon 4 | . . 4 . Ballistic Gun 1 | . . 1 . Ballistic Cannon . | . . . . Launcher 1 | . . 1 . Special Weapon . | . . . . Impact Weapon . | . . . . Slashing Weapon . | . . . . Piercing Weapon . | . . . . Special Melee Weapon . | . . . . Unidentified Prototypes . | . . . . Parts Lost 6 | . . 5 1 Power 1 | . . 1 . Propulsion 4 | . . 3 1 Utility 1 | . . 1 . Weapon . | . . . . Highest Loss Streak 2 | . . 2 1 To Critical Strikes . | . . . . Average Backups 10 | 3 6 11 8 Power . | . 1 . . Propulsion 2 | 1 3 2 2 Utility 2 | . . 2 2 Weapon 4 | 1 2 5 4 Tool/Special . | . . . . Unused Backups 10 | . . 5 5 Power 1 | . . 1 . Propulsion 2 | . . 1 1 Utility 1 | . . . 1 Weapon 5 | . . 3 2 Tool/Special 1 | . . . 1 Average Slot Usage (%) 99 | . 100 99 100 Engine 13 | . 14 13 14 Treads 10 | . 8 9 17 Wheel 17 | . 19 18 10 Device 4 | . 14 4 . Storage 14 | . 14 14 14 Hackware 1 | . . . 12 Protection 7 | . . 9 1 Energy Gun 7 | . 28 7 . Energy Cannon 20 | . . 20 28 Peak Build Rating 33 | 7 7 33 33 Average Rating 22 | 5 7 22 32 On Entrance 11 | . 7 7 33 Naked Turns . | . . . . Heaviest Build 103 | 15 90 103 103 Greatest Support 40 | 16 32 36 40 Greatest Overweight (x) 6 | . 2 6 5 Average Overweight (x) 3 | . . 4 3 Largest Inventory Capacity 25 | 8 25 25 25 Average Capacity 23 | 7 14 25 24 Most Carried 25 | 6 7 25 25 Average Carried 18 | 3 6 19 24 Final Capacity 25 | 8 25 25 5 Final Carried 25 | 6 7 25 5 Class Distribution -------------------- 85% | Mutant 14% | Scavenger-Mutant Dominant Class ---------------- Mutant | -10/Materials Mutant | -10/Subcaves Mutant | -9/Recycling Resources | -11 -10 -10 -9 ----------- Run | Yrd Mat Sub Rec Matter Collected 546 | 270 . 251 25 Remotely . | . . . . Salvage Created 777 | 212 . 527 38 Parts 46 | 11 . 34 1 Haulers Intercepted . | . . . . Recyclers Shooed . | . . . . Parts Field Recycled . | . . . . Retrieved Matter . | . . . . Parts Self-Destructed 14 | . . 14 . Prevented . | . . . . Kills | -11 -10 -10 -9 ------- Run | Yrd Mat Sub Rec Combat Hostiles Destroyed 15 | . . 14 1 Guns 4 | . . 4 . Cannons 10 | . . 9 1 Classes Destroyed 8 | 3 . 5 . Worker 1 | 1 . . . Tunneler 5 | 5 . . . Recycler 1 | 1 . . . Turret 2 | . . 2 . Swarmer 3 | . . 3 . Grunt 2 | . . 1 1 Sentry 1 | . . 1 . Subdweller 9 | . . 9 . Best Kill Streak 5 | 5 . 2 1 Combat Bots Only 2 | . . 2 1 Max Kills in Single Turn 1 | 1 . 1 1 Gunslinging . | . . . . Exploded . | . . . . Melee . | . . . . Uniques/NPCs Destroyed . | . . . . Combat | -11 -10 -10 -9 -------- Run | Yrd Mat Sub Rec Hostile Shots Fired 102 | . . 78 24 Missed 25 | . . 19 6 Hits 77 | . . 59 18 Melee 1 | . . . 1 Projectile 76 | . . 59 17 Critical Strikes 2 | . . 2 . Damage Taken 1137 | . . 873 264 Core 274 | . . 178 96 Absorbed by Shields . | . . . . Ignored by Resistances 29 | . . 29 . Core Remaining (%) 100 | 100 . . . Volleys Fired 62 | 17 . 43 2 Largest 2 | 2 . 2 2 Hottest 160 | 100 . 160 160 Shots Fired 121 | 34 . 83 4 Gun 61 | 34 . 27 . Cannon 58 | . . 54 4 Launcher 2 | . . 2 . Special . | . . . . Kinetic 9 | . . 9 . Thermal 112 | 34 . 74 4 Explosive . | . . . . Electromagnetic . | . . . . Robot Hit Streak 37 | 8 . 37 2 Robot Miss Streak 4 | 4 . 3 1 Penetration Max . | . . . . Secondary Targets 1 | . . 1 . Max Gunslinging Chain 1 | . . 1 . Shots Hit Robots 76 | 22 . 52 2 Core Hits 29 | 8 . 20 1 Critical Kills 1 | . . 1 . Critical Parts Destroyed . | . . . . Critical Strikes 2 | 1 . 1 . Burn 1 | 1 . . . Meltdown 1 | . . 1 . Melee Attacks . | . . . . Impact . | . . . . Slashing . | . . . . Piercing . | . . . . Sneak Attacks . | . . . . Combat Hostiles . | . . . . Follow-up Attacks . | . . . . Damage Inflicted 1676 | 276 . 1314 86 Guns 717 | 276 . 441 . Cannons 852 | . . 766 86 Explosions 107 | . . 107 . Melee . | . . . . Ramming . | . . . . Kinetic 211 | . . 211 . Thermal 1465 | 276 . 1103 86 Explosive . | . . . . Electromagnetic . | . . . . Impact . | . . . . Slashing . | . . . . Piercing . | . . . . Highest Corruption 2 | . . . 2 Average Corruption 2 | . . . 2 Corruption Purged . | . . . . Corruption Blocked . | . . . . Overload Shots . | . . . . Overflow Damage 48 | . . 30 18 Projectiles 48 | . . 30 18 Explosions . | . . . . Melee . | . . . . Knockbacks . | . . . . Impact . | . . . . Kinetic . | . . . . Secondary . | . . . . Self-Inflicted Damage . | . . . . Shots . | . . . . Rammed . | . . . . Targets Rammed . | . . . . Kicked . | . . . . Crushed . | . . . . Highest Temperature 333 | 191 . 333 168 Average Temperature 77 | 85 . 70 109 Received Heat Transfer 291 | . . 228 63 Siege Activations . | . . . . Martial Activations . | . . . . Shielding Activations . | . . . . Robots Disrupted . | . . . . Combat Hostiles . | . . . . Robots Corrupted . | . . . . Combat Hostiles . | . . . . Parts Fried . | . . . . Impact Corruptions . | . . . . Robots Melted 1 | . . 1 . Combat Hostiles 1 | . . 1 . Parts Melted 4 | 3 . 1 . Heat Transferred 2533 | 888 . 1534 111 Parts Sabotaged . | . . . . Parts Stolen . | . . . . Parts Stripped . | . . . . Power Chain Reactions . | . . . . Alert | -11 -10 -10 -9 ------- Run | Yrd Mat Sub Rec Maximum Alert Level . | . . . . Low Security (%) 100 | 100 100 . 100 Level 1 . | . . . . Level 2 . | . . . . Level 3 . | . . . . Level 4 . | . . . . Level 5 . | . . . . High Security . | . . . . Max Security . | . . . . Peak Influence 108 | 10 30 . 108 Initial 108 | . . . 108 Average 26 | 1 3 . 45 Influence Increases 433 | 35 30 275 93 Destroy 0b10 Robot/C 160 | . . 140 20 Destroy 0b10 Robot/NC 35 | 35 . . . Successful Hack 12 | . . . 12 Select Force Hacks 90 | . 30 . 60 Destroy Structure 1 | . . . 1 Lose Combat Pursuer 135 | . . 135 . Influence Decreases 413 | 35 30 48 300 Entered New Map 119 | . . . 119 Time Decay 283 | 35 30 38 180 Lost Part 11 | . . 10 1 Squads Dispatched 1 | . 1 . . Investigation 1 | . 1 . . Extermination . | . . . . Reinforcement . | . . . . Assault . | . . . . Garrison . | . . . . Intercept . | . . . . Searches Triggered . | . . . . Construction Impeded . | . . . . Haulers Reinforced . | . . . . Active Scanning Responses . | . . . . Cargo Convoy Interrupts . | . . . . Stealth | -11 -10 -10 -9 --------- Run | Yrd Mat Sub Rec Distress Signals . | . . . . Communications Jammed . | . . . . Distress Signals . | . . . . Times Spotted 25 | . . 19 6 Peak Tracking Total 5 | . . 3 5 Tactical Retreats 3 | . . 3 . Traps | -11 -10 -10 -9 ------- Run | Yrd Mat Sub Rec Traps Triggered 2 | . . 2 . Indirectly . | . . . . Trap Hack Attempts . | . . . . Triggered . | . . . . Disarmed . | . . . . Reprogrammed . | . . . . Reused . | . . . . Traps Extracted . | . . . . Installed . | . . . . Triggered . | . . . . Machines | -11 -10 -10 -9 ---------- Run | Yrd Mat Sub Rec Machines Disabled 3 | . . 3 . Max in Single Turn 2 | . . 2 . Machines Repaired . | . . . . Machines Dismantled . | . . . . Machines Sabotaged . | . . . . Overloaded Fab Kills . | . . . . Hacking | -11 -10 -10 -9 --------- Run | Yrd Mat Sub Rec Machines Accessed 10 | . 1 2 7 Terminals 5 | . . . 5 Fabricators . | . . . . Repair Stations . | . . . . Recycling Units 3 | . 1 . 2 Scanalyzers . | . . . . Garrison Access . | . . . . Total Hacks 27 | . 1 3 23 Successful 21 | . 1 3 17 Failed 6 | . . . 6 Catastrophic . | . . . . Database Lockouts . | . . . . Manual 18 | . 1 . 17 Terminals 19 | . . . 19 Fabricators . | . . . . Repair Stations . | . . . . Recycling Units 5 | . 1 . 4 Scanalyzers . | . . . . Garrison Access . | . . . . Terminal Hacks 6 | . . 3 3 Record 1 | . . 1 . Robot Analysis 1 | . . . 1 Prototype ID Bank 1 | . . . 1 Open Door 1 | . . 1 . Terminal Index 1 | . . . 1 Release Object 1 | . . 1 . Fabricator Hacks . | . . . . Repair Station Hacks . | . . . . Recycling Unit Hacks 2 | . . . 2 Retrieve Components 2 | . . . 2 Scanalyzer . | . . . . Garrison Access Hacks . | . . . . Unauthorized Hacks 13 | . 1 . 12 Terminals 10 | . . . 10 Botnet 5 | . . . 5 Skim 5 | . . . 5 Fabricators . | . . . . Repair Stations . | . . . . Recycling Units 3 | . 1 . 2 Tunnel 3 | . 1 . 2 Scanalyzers . | . . . . Garrison Access . | . . . . Data Cores Recovered . | . . . . Used . | . . . . Hacking Detections 5 | . . . 5 Full Trace Events . | . . . . Feedback Events . | . . . . Feedback Blocked . | . . . . Robot Schematics Acquired . | . . . . Robots Built . | . . . . Authchips . | . . . . Time . | . . . . Total Robot Build Rating . | . . . . Part Schematics Acquired . | . . . . Parts Built . | . . . . Authchips . | . . . . Time . | . . . . Total Part Build Rating . | . . . . Parts Repaired . | . . . . Time . | . . . . Parts Recycled . | . . . . Recycled Matter . | . . . . Retrieved Matter . | . . . . Retrieved Components 6 | . . . 6 Parts Scanalyzed . | . . . . Part Schematics Acquired . | . . . . Parts Damaged . | . . . . Bothacking | -11 -10 -10 -9 ------------ Run | Yrd Mat Sub Rec Used RIF Installer . | . . . . Robots Hacked . | . . . . Non-combat . | . . . . Combat . | . . . . Robot Hacks Applied . | . . . . Relay Couplers Released . | . . . . Fabnet Peak Effective % . | . . . . Robots Rewired . | . . . . Allies Hacked . | . . . . Hacks Repelled . | . . . . Allies | -11 -10 -10 -9 -------- Run | Yrd Mat Sub Rec Total Allies . | . . . . Largest Group . | . . . . Highest-Rated Group . | . . . . Highest-Rated Ally . | . . . . Total Orders . | . . . . Ally Attacks . | . . . . Total Damage . | . . . . Kills . | . . . . Allies Corrupted . | . . . . Allies Melted . | . . . . Intel | -11 -10 -10 -9 ------- Run | Yrd Mat Sub Rec Active Infowar (turns) 427 | 21 201 205 . Seismic 427 | 21 201 205 . Robot Analysis Total 1 | . . . 1 Derelict Logs Recovered 3 | . . 3 . Drone Launches . | . . . . Drone Recoveries . | . . . . Exploration | -11 -10 -10 -9 ------------- Run | Yrd Mat Sub Rec Turns Passed 3765 | 163 201 2944 457 Spaces Moved 2151 | 91 172 1642 246 Core 3 | 3 . . . Treads 40 | . . . 40 Legs . | . . . . Wheels 2108 | 88 172 1642 206 Hover . | . . . . Flight . | . . . . Fastest Speed 50 | 50 100 129 150 Average Speed 159 | 98 109 164 180 Slowest Speed 480 | 100 130 190 480 Overloaded Moves . | . . . . Propulsion Burnouts . | . . . . Robots Hopped . | . . . . Potential Cave-ins . | . . . . Cave-ins Triggered . | . . . . Exploration Rate (%) 44 | 6 30 82 58 Regions Visited 3 Branch Regions 2 Pre-discovered Areas 4 | . 1 1 2 Known Exits Taken . | . . . . Unknown Exits Taken 3 | 1 1 1 . Scrap Searched 6 | . . 6 . Spaces Dug 6 | . . 6 . Terrain Destroyed 39 | . . 38 1 Melee . | . . . . Projectile 12 | . . 11 1 AOE 27 | . . 27 . Terrain Rammed . | . . . . Walls Destroyed . | . . . . Machines Disabled . | . . . . Actions | -11 -10 -10 -9 --------- Run | Yrd Mat Sub Rec Total 2360 | 127 184 1793 256 Wait 77 | 6 11 60 . Move 2148 | 90 171 1641 246 Hop . | . . . . Pick Up 23 | 7 . 15 1 Fast Attach 9 | 6 . 2 1 Attach 5 | 1 . 4 . Detach 1 | . . 1 . Swap 17 | . 2 13 2 Drop 18 | . . 14 4 Fire 62 | 17 . 43 2 Melee . | . . . . Ram . | . . . . Kick . | . . . . Crush . | . . . . Escape Stasis . | . . . . Rewire . | . . . . Trap . | . . . . Miscellaneous . | . . . . Route ------- -11/Scrapyard -10/Materials -10/Subcaves (discovered 3 exits: [*Mat] / *Rec / [*Scr]) -9/Recycling (discovered 1 exit: [*Fac]) History --------- Turn | Location | Event 15 | -11/Scrapyard | Discovered new exit (range 15) 164 | -11/Scrapyard | Entered Materials 307 | -10/Materials | Build established: Mutant 348 | -10/Materials | Discovered new exit (range 13) 365 | -10/Materials | Entered Subcaves 366 | -10/Subcaves | Approached by a straggling Scientist 504 | -10/Subcaves | Scientist uncovered a shortcut to Scraptown 618 | -10/Subcaves | Shifting Twisted Machinery released Sub. Beam Cannon 717 | -10/Subcaves | Shifting Twisted Machinery released Sub. Beam Cannon 963 | -10/Subcaves | Build established: Scavenger-Mutant 1034 | -10/Subcaves | Learned location of Zion (-6) 1068 | -10/Subcaves | Discovered new exit (range 9) 1112 | -10/Subcaves | Learned Materials non-interactive machine intel 1247 | -10/Subcaves | Shifting Twisted Machinery released Sub. Laser 1264 | -10/Subcaves | Shifting Twisted Machinery released Sub. Shrapnel Launcher 1384 | -10/Subcaves | Shifting Twisted Machinery released Mak. Thermal Plating 1384 | -10/Subcaves | Shifting Twisted Machinery released Sub. Machine Gun 1521 | -10/Subcaves | Build established: Mutant 1787 | -10/Subcaves | Found SUBCON Basin 2710 | -10/Subcaves | Learned Materials garrison access intel 2876 | -10/Subcaves | Ambushed by Subdweller buried in earth 2902 | -10/Subcaves | Discovered new exit (range 12) 3169 | -10/Subcaves | Core integrity fell below 50% 3309 | -10/Subcaves | Entered Recycling 3700 | -9/Recycling | Discovered new exit (range 16) 3761 | -9/Recycling | Core integrity fell below 20% 3766 | -9/Recycling | Destroyed by B-36 Bruiser with Hammer Last Messages --------------- Testing... Terminal linked with 4 systems. Skimming routine engaged. Thanks from A0-MCA. >>Trojan(Botnet) Trojan loaded successfully. Testing... Terminal linked with 4 systems. Awaiting botnet instructions. 03700_ EXIT=FOUND 03739_ >> SKIM: Stored Materials entrances (x2). 03752_ Y-45 Defender springs to life. 03752_ P-60 Hacker springs to life. 03758_ Destroyed Heat Sink. 03761_ Dropped Scrap Shield. 03761_ Discarded Mak. Hacking Suite. 03761_ Lgt. Treads destroyed. 03762_ Dropped Huge Storage Unit. 03762_ Acquired Scrap Shield. 03764_ G-34 Mercenary destroyed. 03765_ Acquired 25 matter. Map ----- +----------------------------------------------------+ | | | | | ?????????????????????????????????????????????????? | | ?????????????????????????????????????????????????? | | ?????????????????????????????????????????????????? | | ?????????????????????????????????????????????????? | | ?????????????????????????????????????????????????? | | ?????????????????????????????????????????????????? | | ?????????????????????????????????????????????????? | | ?????????????????????????????????????????????????? | | ?????????????????????????????????????????????????? | | ????#######??????????????????????????????????????? | | ????? ???????????????????????????????????????? | | ????? ???????????????????????????????????????? | | ?????? ???????????????????#######??????????????? | | ?????? ???????????????????# ?????????????? | | ??????#+#???????????????????# """ #???????????? | | ??????# #?????#############?# """ #???????????? | | ??????# ####??#!k ! ! #?# """ #???????????? | | ??????# #??#Y [ %s #?# #???????????? | | ##########+##?# ga [ #?# """ #???????????? | | ] #?# gY r #?# """ #???????????? | | """" """" #?#! rs%!#?# """ #???????????? | | """" """" #?# ?? p ??# #???????????? | | """" """" #??#+####+#up#####+##+######?????????? | | #### =b@] #?????????? | | #######+###### # [! < #?????????? | | ???# Y = #?????????? | | ???# ###############+###########! !#####?????????? | | #?## #????# #? !!#???????##????? | | #????# """"" """"" #?########### #????? | | #????????""" """"" ""#?# #????? | | """ ##??????"""" """"" T"#?# #????? | | """ ??????? ""#?# #????? | | """ #????? #?# #????? | | #??????###################?# #????? | | #?????????????????########## #????? | | """ #???????????#######] ]##"""# #????? | | """ ############# # ] ##"Y"######+######????? | | """ [ ! #?????? | | T [ #?????? | | #?????? | | +#+############### #####+########### #?????? | | #??????????## ##?#! ! #???# ####### | | """ #????#????### #??# #???# # | | """ #??### #### # #??# ! *!#???# # | | """ #??# # ####! #???# # | | #??# / [## ! #???# # | | """ #??# # [[## ] #???# # | | """ #??# # [[## #???# # | +----------------------------------------------------+ Best States ------------- Heat Dissipation 25 Coolant Potential 50 Energy Generation 15 Energy Capacity 250 Matter Stores 300 Matter Capacity 300 Sight Range 16 Terrain Scan Density 10 Armor Coverage 100 Resistance: TH 10 Evasion (%) 40 Recoil Reduction 2 Offensive Hacking 11 Item Schematics ----------------- None Robot Schematics ------------------ None Fabricated ------------ Nothing Repaired ---------- Nothing Alien Tech Used ----------------- None Achievements -------------- None Challenges ------------ None Game ------ Seed UltimateArmoredShell Manual? 0 Play Time 00:22:57 Cumulative 470.1 hours Start 2025.08.17 @ 12:46:11 End 2025.08.17 @ 13:08:41 Sessions 1 Manual Loads 0 Difficulty Rogue Special Mode None Game No. 206 Rogue 206 Adventurer 0 Explorer 0 Win Type - Total 31 Types 13/2/5/2/5/1/0/2/0/1 Lore% 95 Gallery% 86 Achievement% 79 Wizard Run 0 Options --------- Layout 1 ASCII 0 Keyboard 0 Movement Numpad Keybinds 0 Fullscreen 1 Font 24/Smallcaps Map View 50x35 Zoom Use 0% Tactical HUD 1 Map Filters NONE Filters NONE Steam 1 RUN: d364b43d-19ac-436e-948c-d2d2b5849fea